bitfinex-derivatives/quotes_ETHF0:USTF0_20250810
["timestamp","ask_amount","ask_price","bid_price","bid_amount"]
[1754787972166,0.46462,4303.3,4302.4,0.7147]
[1754787972372,0.46462,4303.3,4302.5,0.7098]
[1754787972373,3.2078,4303.2,4302.5,0.7098]
[1754787972574,0.46466,4303.0,4302.5,0.7098]
[1754787972777,2.34648,4302.8,4302.3,0.5021]
[1754787972974,1.8818,4302.6,4302.3,0.5021]
[1754787973276,0.7226,4302.5,4302.3,1.2119]
[1754787973478,3.03255612,4303.1,4302.3,1.9266]
[1754787973669,0.7226,4303.1,4302.3,1.9266]
[1754787973874,3.75515612,4303.1,4302.7,0.46468]
[1754787974075,3.03255612,4303.1,4303.0,0.46465]
[1754787974276,3.03255612,4303.1,4303.0,2.39125]
[1754787974470,3.2078,4303.9,4303.0,2.39125]
[1754787974471,0.60709984,4303.8,4303.0,0.39122]
[1754787974777,1.8818,4303.6,4303.3,0.46462]
[1754787974980,1.8818,4303.4,4303.2,0.46463]
[1754787975278,4.44341894,4303.3,4303.2,0.46463]
[1754787975870,3.78281894,4303.3,4303.2,0.46463]
[1754787976282,4.44341894,4303.3,4303.2,0.46463]
[1754787976570,0.6606,4303.1,4302.3,0.5021]
[1754787976774,1.8818,4303.2,4302.8,0.46467]
[1754787976978,2.97968828,4303.0,4302.8,0.46467]
[1754787977176,1.8818,4302.9,4302.8,0.46467]
[1754787977578,4.85591111,4302.9,4302.8,0.46467]
[1754787978077,1.8818,4302.8,4302.7,0.46468]
[1754787978273,1.1592,4302.6,4302.3,0.46473]
[1754787978478,7.00265435,4302.8,4302.7,0.46468]
[1754787978675,1.8818,4303.2,4302.2,1.87655]
[1754787978874,1.8818,4303.2,4303.1,0.46464]
[1754787979075,3.79485435,4303.0,4302.2,4.4197]
[1754787979271,3.05893432,4303.2,4302.2,4.4197]
[1754787979485,3.05893432,4302.9,4302.3,1.9266]
[1754787979780,1.8818,4302.9,4302.8,0.46467]
[1754787980173,4.85619113,4302.9,4302.8,0.46467]
[1754787980481,1.8818,4302.8,4302.7,0.46468]
[1754787980779,1.8818,4302.8,4302.7,1.67658]
[1754787980780,4.35759113,4302.8,4302.7,1.67658]
[1754787980980,2.97439113,4302.8,4302.4,0.5021]
[1754787981177,2.97439113,4302.8,4302.1,0.46475]
[1754787981178,1.8818,4302.7,4302.1,0.46475]
[1754787981375,3.67247,4302.9,4302.3,0.46472]
[1754787981574,1.8818,4302.8,4302.5,0.4647]
[1754787981776,0.7226,4302.6,4302.5,1.1745]
[1754787982073,0.46465,4303.1,4302.7,0.46468]
[1754787982074,1.1592,4303.1,4302.7,0.46468]
[1754787982270,0.4986,4303.2,4302.2,3.2078]
[1754787982470,1.1592,4302.8,4302.2,0.7098]
[1754787982671,0.7226,4302.7,4302.6,0.46469]
[1754787982877,4.88713631,4302.7,4302.6,0.46469]
[1754787983183,1.8818,4302.7,4302.6,1.67659]
[1754787984279,1.8818,4302.7,4302.6,0.5021]
[1754787984477,3.2078,4302.9,4302.2,0.7098]
[1754787984682,1.8818,4302.7,4302.6,0.46469]
[1754787986081,1.3832,4302.6,4302.4,0.46471]
[1754787986279,0.7226,4302.5,4302.4,1.67661]
[1754787986885,4.591,4302.9,4302.4,0.7147]
[1754787987081,3.9304,4302.9,4302.8,0.46467]
[1754787987281,5.0896,4302.9,4302.8,0.46467]
[1754787987579,8.07421844,4302.9,4302.8,1.67657]
[1754787987886,3.2078,4302.9,4302.8,2.39127]
[1754787988479,2.04742967,4303.3,4302.8,1.2119]
[1754787988685,1.8818,4303.2,4303.0,0.46465]
[1754787988886,1.8818,4303.1,4303.0,0.46465]
[1754787989281,1.84785,4303.0,4302.6,0.46469]
[1754787989481,1.8818,4302.8,4302.5,0.4647]
[1754787989681,1.8818,4302.8,4302.2,3.9176]
[1754787989882,1.1592,4302.6,4302.2,3.9176]
[1754787990079,1.8818,4302.5,4302.4,0.46472]
[1754787990274,1.8818,4302.4,4301.8,0.7098]
[1754787990579,1.8818,4302.4,4301.7,0.5021]
[1754787990580,1.8818,4302.2,4301.9,0.46476]
[1754787990776,0.7226,4302.1,4301.5,0.7098]
[1754787990979,1.8818,4301.7,4301.0,0.46487]
[1754787991180,1.1592,4301.6,4300.8,3.2078]
[1754787991390,0.7226,4301.5,4301.0,0.7098]
[1754787991587,0.7226,4301.6,4301.0,1.2119]
[1754787991783,0.16452553,4301.7,4301.6,0.4648]
[1754787992088,3.0859359,4301.6,4301.4,0.46482]
[1754787992586,3.0859359,4301.6,4301.5,1.2119]
[1754787992783,3.8085359,4301.6,4301.5,1.2119]
[1754787992986,0.16458587,4301.7,4301.6,0.5021]
[1754787993187,3.9304,4301.8,4301.7,1.67669]
[1754787993384,3.9304,4301.8,4301.7,0.46479]
[1754787993385,5.0896,4301.8,4301.7,0.46479]
[1754787993682,1.8818,4301.5,4300.3,3.7099]
[1754787993885,0.7226,4301.2,4300.4,1.9266]
[1754787994190,1.8818,4300.5,4300.2,0.46495]
[1754787994484,0.16458587,4301.0,4300.5,0.46492]
[1754787994675,3.2078,4301.1,4299.8,3.2078]
[1754787994879,3.04481736,4301.0,4300.9,1.67677]
[1754787995077,3.04481736,4301.0,4300.4,0.7147]
[1754787995078,0.7178,4300.9,4300.7,0.4649]
[1754787995283,1.9234,4300.9,4300.8,1.1872]
[1754787995479,3.80230785,4300.8,4300.7,0.5247]
[1754787995677,0.7178,4300.8,4300.7,1.1872]
[1754787995878,0.7178,4300.8,4300.7,1.8508]
[1754787996278,0.7178,4301.0,4300.8,0.46489]
[1754787996475,0.7178,4300.9,4300.8,1.12739]
[1754787997082,0.16458587,4301.3,4301.2,2.31565]
[1754787997386,2.98258378,4301.6,4301.5,0.98951]
[1754787997595,3.70038378,4301.6,4301.5,2.31561]
[1754787997888,3.70038378,4301.6,4300.7,0.4649]
[1754787997889,0.46484,4301.3,4300.7,0.4649]
[1754787998085,0.46489,4300.8,4300.3,0.46494]
[1754787998288,1.4231,4300.7,4300.2,0.46495]
[1754787998484,1.4231,4300.7,4300.0,0.6625]
[1754787998485,1.9234,4300.5,4300.4,0.46493]
[1754787998790,4.98822717,4300.5,4300.4,0.46493]
[1754787999290,0.88238587,4300.8,4300.6,1.1872]
[1754787999487,0.88238587,4300.8,4297.4,2.8936312]
[1754787999488,2.97226147,4300.5,4299.0,1.12868]
[1754787999694,0.7053,4299.9,4299.3,0.6636]
[1754787999985,2.97226147,4299.8,4299.0,0.6636]
[1754788000290,0.7053,4299.7,4299.6,0.6636]
[1754788000492,3.76956248,4299.9,4299.4,0.6636]
[1754788000691,0.5003,4299.4,4298.5,0.6636]
[1754788000892,0.7053,4299.3,4298.5,0.6636]
[1754788001093,3.76956248,4299.3,4298.6,0.46512]
[1754788001290,0.7178,4298.7,4298.0,0.005]
[1754788001595,0.7053,4298.1,4298.0,0.005]
[1754788001787,1.9234,4298.1,4298.0,0.005]
[1754788002283,1.2056,4298.0,4296.8,1.0847]
[1754788002591,2.99902561,4297.9,4297.4,0.46525]
[1754788002794,3.70432561,4297.9,4297.1,2.21358]
[1754788002995,0.7053,4297.0,4296.2,0.6636]
[1754788003198,0.5003,4296.7,4296.2,0.6636]
[1754788003397,0.7053,4296.7,4296.4,0.46536]
[1754788003696,0.7053,4296.8,4296.7,1.1883]
[1754788003895,1.2056,4296.7,4296.2,1.12898]
[1754788004198,1.2056,4296.6,4296.4,0.46536]
[1754788004499,2.99582962,4296.8,4295.5,3.2078]
[1754788004500,1.2056,4296.3,4295.5,3.2078]
[1754788004792,3.67312,4296.8,4296.2,0.46538]
[1754788004793,1.2181,4296.4,4296.2,0.46538]
[1754788005000,0.7053,4296.2,4296.1,1.12899]
[1754788005190,3.06943689,4296.2,4296.1,2.21369]
[1754788005396,0.7053,4296.4,4296.2,0.6636]
[1754788005703,1.2056,4296.2,4295.5,3.8714]
[1754788005996,0.5003,4294.9,4294.3,1.12919]
[1754788006192,3.2078,4295.3,4294.4,0.46558]
[1754788006399,1.2056,4294.7,4294.4,0.46558]
[1754788006708,3.01677205,4295.1,4294.8,1.1883]
[1754788006998,3.01677205,4295.1,4294.1,1.16404]
[1754788006999,0.7053,4295.3,4295.2,0.6636]
[1754788007199,3.00350503,4295.0,4294.9,3.67332]
[1754788007410,3.70880503,4295.0,4294.9,3.67332]
[1754788007593,0.7053,4295.4,4294.9,3.2078]
[1754788007799,1.2056,4294.9,4294.4,3.2078]
[1754788007994,3.00350503,4295.2,4294.9,1.1883]
[1754788008204,3.00350503,4295.3,4295.2,1.1883]
[1754788008400,1.9234,4295.0,4294.9,3.2078]
[1754788008594,1.2056,4294.9,4294.3,0.46559]
[1754788008801,2.38895,4294.7,4293.8,3.67344]
[1754788009098,2.97613264,4294.6,4294.5,0.46556]
[1754788009307,2.97613264,4294.6,4294.5,5.42166]
[1754788009507,0.7053,4294.8,4294.6,1.12916]
[1754788009695,0.7053,4294.8,4294.5,1.0847]
[1754788010001,1.2056,4294.5,4294.3,0.6636]
[1754788010202,0.5003,4294.6,4294.5,0.6636]
[1754788010597,3.06951766,4294.9,4294.8,1.1883]
[1754788010794,3.2078,4295.2,4294.9,0.46552]
[1754788010999,0.7053,4295.5,4294.9,0.46552]
[1754788011000,0.7053,4295.5,4295.0,3.7325]
[1754788011301,0.7178,4294.6,4294.1,3.2078]
[1754788011609,0.46555,4294.7,4294.1,3.67341]
[1754788011812,0.7053,4294.8,4294.2,1.1883]
[1754788012105,1.2053,4294.5,4294.4,0.6636]
[1754788012308,0.7053,4294.4,4293.7,0.6636]
[1754788012609,6.22254134,4294.3,4293.8,1.0847]
[1754788012805,0.7053,4294.2,4293.9,1.7483]
[1754788013103,0.7053,4294.2,4294.1,1.1883]
[1754788013302,0.7228,4294.8,4294.1,1.1883]
[1754788013303,0.005,4294.8,4294.6,0.46555]
[1754788013501,0.005,4294.8,4294.7,1.7483]
[1754788013901,3.7081,4296.0,4294.8,1.16385]
[1754788014102,34.2013,4296.3,4295.9,1.1883]
[1754788014301,2.99678255,4296.0,4295.7,0.46544]
[1754788014500,2.99678255,4296.0,4295.6,3.2078]
[1754788014501,3.2078,4296.5,4295.8,1.7483]
[1754788014703,3.2078,4296.5,4295.8,1.0847]
[1754788014902,0.04051536,4297.9,4295.8,1.0847]
[1754788014903,2.99678255,4296.4,4296.3,2.21367]
[1754788015106,3.2078,4297.7,4296.3,2.21367]
[1754788015107,0.7178,4297.6,4296.9,0.56]
[1754788015310,4.4134,4297.7,4296.5,0.56]
[1754788015311,2.98157845,4297.5,4296.5,0.56]
[1754788015513,0.5003,4297.5,4297.2,0.56]
[1754788015706,0.7178,4297.3,4297.2,0.56]
[1754788015909,3.9256,4297.7,4296.7,3.2078]
[1754788016105,3.9256,4297.7,4297.5,0.56]
[1754788016305,0.7178,4297.6,4297.5,0.56]
[1754788018306,0.7053,4296.8,4296.1,0.46538]
[1754788018604,3.75978898,4296.7,4296.1,0.46538]
[1754788018803,3.75978898,4296.7,4296.0,3.7678]
[1754788018804,0.7178,4296.6,4296.5,0.56]
[1754788019416,0.5003,4296.5,4296.0,3.2078]
[1754788019606,2.96194603,4296.6,4296.0,3.2078]
[1754788019807,1.9234,4296.3,4296.0,3.2078]
[1754788020009,1.9234,4296.3,4295.4,3.2078]
[1754788020312,2.96194603,4297.1,4296.2,1.16347]
[1754788020313,0.7178,4296.8,4296.2,1.16347]
[1754788020504,3.9256,4297.8,4296.9,0.56]
[1754788020708,0.7178,4298.4,4298.2,0.46516]
[1754788020905,0.7178,4298.4,4298.3,0.56]
[1754788021108,6.28247424,4298.5,4296.8,3.2078]
[1754788021109,1.9234,4298.2,4296.8,3.2078]
[1754788021413,0.46519,4298.0,4297.3,3.2078]
[1754788021604,3.2078,4297.6,4296.7,3.2078]
[1754788021804,3.2078,4296.9,4295.7,3.2078]
[1754788022009,1.2181,4295.8,4295.7,3.2078]
[1754788022216,1.9234,4295.8,4295.7,3.2078]
[1754788022411,1.2056,4295.8,4295.4,0.46547]
[1754788022616,0.46536,4296.4,4295.8,1.02542]
[1754788022811,1.18316,4296.5,4295.9,0.46542]
[1754788023114,1.4231,4296.1,4295.8,1.02542]
[1754788023313,0.7178,4296.0,4295.8,1.02542]
[1754788023713,0.7178,4296.0,4295.9,0.56]
[1754788024312,0.5003,4296.2,4295.9,0.46541]
[1754788024619,3.7078,4297.4,4296.3,1.16343]
[1754788024815,3.7078,4297.4,4297.2,0.46528]
[1754788025016,2.99255597,4297.3,4297.2,0.46528]
[1754788025414,0.5,4297.4,4297.3,0.572]
[1754788025613,0.7104,4298.1,4298.0,0.46519]
[1754788025819,0.7227,4298.1,4298.0,0.572]
[1754788026020,0.7227,4298.1,4297.9,0.46519]
[1754788026317,0.7227,4298.0,4297.9,1.03209]
[1754788026510,3.9182,4298.6,4298.3,0.46515]
[1754788026708,3.01446416,4298.5,4298.4,0.5669]
[1754788026922,3.2078,4298.6,4298.5,0.47023]
[1754788027114,0.7227,4298.6,4298.5,1.03713]
[1754788027308,1.9847,4299.2,4298.9,0.46508]
[1754788027514,1.9847,4299.0,4298.5,0.572]
[1754788027711,0.7227,4298.9,4298.8,0.4651]
[1754788027911,1.9847,4298.9,4298.8,0.4651]
[1754788028112,0.7227,4298.9,4298.8,0.4651]
[1754788028713,0.7227,4298.9,4298.8,1.0371]
[1754788029115,0.7227,4299.2,4298.4,0.572]
[1754788029318,0.7227,4299.2,4298.3,1.16288]
[1754788029319,0.7227,4299.2,4298.9,0.46509]
[1754788029515,0.7227,4299.1,4299.0,0.572]
[1754788030113,3.2078,4299.9,4299.7,0.465]
[1754788030321,2.7938,4299.9,4299.8,0.5488]
[1754788030522,2.7938,4299.9,4299.8,0.4191]
[1754788030721,2.7938,4299.9,4299.4,0.46503]
[1754788030922,1.4331,4299.7,4299.4,0.47013]
[1754788031217,0.46494,4300.3,4300.0,0.46497]
[1754788031218,0.7227,4300.3,4300.0,0.46497]
[1754788031422,0.7227,4300.1,4300.0,0.46497]
[1754788031617,1.4331,4300.8,4300.4,0.46493]
[1754788031919,3.7594,4300.9,4299.3,1.16262]
[1754788031920,3.9305,4300.9,4300.6,0.4649]
[1754788032225,0.7227,4301.2,4301.0,0.46485]
[1754788032426,0.7227,4301.2,4301.1,0.0051]
[1754788032721,3.04292467,4301.4,4301.2,0.46484]
[1754788032913,3.9305,4301.7,4301.4,0.46482]
[1754788033113,3.9305,4301.7,4301.6,0.0051]
[1754788033620,0.7227,4301.7,4301.6,0.0051]
[1754788034424,1.4331,4301.7,4301.6,0.0051]
[1754788034723,0.7227,4300.5,4300.4,3.2078]
[1754788034924,1.9847,4300.5,4300.4,3.2078]
[1754788035223,0.7227,4300.4,4299.9,3.2078]
[1754788035424,2.44966,4300.2,4299.4,3.67284]
[1754788035625,0.7227,4300.1,4299.9,0.0051]
[1754788035930,0.7227,4300.1,4299.5,0.0051]
[1754788036128,0.7227,4299.9,4299.4,3.67283]
[1754788036316,2.98097216,4300.0,4299.4,3.67283]
[1754788036523,1.4331,4299.5,4299.4,3.2078]
[1754788037019,0.7227,4299.5,4299.4,3.2129]
[1754788037720,0.7227,4300.0,4299.5,1.16257]
[1754788037927,0.7227,4300.5,4300.2,0.46495]
[1754788038117,1.4331,4300.5,4300.2,0.46495]
[1754788038319,1.4331,4300.5,4299.0,1.1627]
[1754788038320,2.97399123,4300.4,4298.3,3.2078]
[1754788038520,2.97399123,4300.4,4298.5,0.5096]
[1754788038521,3.2078,4299.2,4298.5,0.5096]
[1754788038719,0.7104,4299.1,4298.5,0.5096]
[1754788039024,0.7104,4298.8,4298.2,1.1801]
[1754788039326,0.7104,4298.6,4298.3,0.6705]
[1754788039530,1.89823,4298.5,4297.7,1.1801]
[1754788039723,0.7104,4298.0,4297.9,0.5096]
[1754788039920,0.7104,4297.9,4297.7,0.46522]
[1754788040123,0.7227,4298.6,4297.9,0.4652]
[1754788040315,0.7104,4298.5,4297.9,0.4652]
[1754788040521,3.06151344,4298.2,4297.9,0.4652]
[1754788040721,0.7104,4298.1,4297.4,1.1801]
[1754788040916,4.23710344,4298.1,4297.4,1.1801]
[1754788041327,1.17559,4298.1,4297.4,1.1801]
[1754788041624,0.46522,4297.7,4296.9,0.5096]
[1754788041828,0.7227,4297.2,4296.8,0.46531]
[1754788042031,0.7227,4297.2,4296.3,33.499]
[1754788042032,3.2078,4297.3,4296.3,33.499]
[1754788042221,3.2078,4296.8,4296.3,33.499]
[1754788042422,0.7104,4296.7,4296.2,0.46537]
[1754788042626,0.7227,4296.6,4296.2,0.46537]
[1754788042825,0.7104,4296.6,4296.5,0.46535]
[1754788043027,0.7104,4296.6,4296.5,1.64545]
[1754788043230,3.2078,4296.8,4296.4,0.46536]
[1754788043428,3.2078,4296.8,4296.7,0.46533]
[1754788043625,0.46525,4297.5,4296.5,0.46535]
[1754788043835,0.7104,4297.4,4297.2,1.1801]
[1754788044132,0.7104,4297.4,4297.3,0.5096]
[1754788044320,3.04784735,4297.6,4297.4,0.46525]
[1754788044520,0.7227,4297.8,4297.5,1.1801]
[1754788044822,3.06753882,4297.8,4296.9,3.2078]
[1754788045022,0.7104,4297.8,4297.6,0.46523]
[1754788045228,0.7104,4297.7,4297.6,0.97483]
[1754788045426,3.06753882,4297.8,4297.6,0.46523]
[1754788045626,3.2078,4297.9,4297.7,1.1801]
[1754788045827,3.2078,4297.9,4297.8,1.64531]
[1754788046026,0.7227,4298.4,4298.1,0.46518]
[1754788046229,0.7227,4298.4,4298.1,0.97478]
[1754788046526,0.7104,4298.2,4298.1,1.13568]
[1754788046829,3.9182,4298.6,4298.5,0.46513]
[1754788047127,3.9182,4298.6,4298.5,1.64523]
[1754788047325,2.6548,4298.6,4298.5,1.64523]
[1754788047529,0.7104,4299.2,4299.0,1.1801]
[1754788047730,0.7104,4299.1,4299.0,1.1801]
[1754788048329,1.9847,4298.7,4298.1,1.1801]
[1754788048726,3.08102076,4298.6,4298.0,1.1801]
[1754788048921,3.2078,4298.8,4298.3,0.46515]
[1754788049125,0.7104,4298.5,4298.4,1.1801]
[1754788049824,3.2078,4298.8,4298.5,0.46513]
[1754788050027,0.46519,4298.0,4296.8,5.34]
[1754788050228,1.262,4297.8,4296.9,0.5096]
[1754788050431,1.262,4297.8,4297.2,0.46528]
[1754788050629,3.01164744,4297.7,4297.1,0.97488]
[1754788050828,0.46523,4297.6,4297.0,0.46529]
[1754788051028,0.7104,4297.4,4297.2,1.1801]
[1754788051234,0.7104,4297.4,4297.3,1.1801]
[1754788052627,0.7104,4297.6,4297.4,0.46525]
[1754788052826,0.7104,4297.6,4297.5,1.1801]
[1754788053026,2.98461688,4297.6,4297.5,1.1801]
[1754788053222,1.2743,4298.1,4297.6,0.46523]
[1754788053421,0.7104,4297.9,4297.7,1.1801]
[1754788053823,1.2743,4298.1,4297.8,1.64531]
[1754788054028,3.2078,4298.2,4298.0,1.64529]
[1754788054428,3.7655834,4298.1,4298.0,1.1801]
[1754788054627,3.7655834,4298.1,4298.0,1.64529]
[1754788054829,0.7104,4298.1,4298.0,1.64529]
[1754788055124,0.7104,4298.1,4297.9,0.4652]
[1754788055324,1.4357,4298.1,4297.9,0.4652]
[1754788055524,0.7347,4298.0,4297.9,1.7369]
[1754788056034,0.7347,4298.7,4298.0,1.2793]
[1754788056328,3.06652181,4298.6,4298.1,0.46518]
[1754788056534,3.06652181,4298.6,4298.2,3.2078]
[1754788056732,0.46507,4299.1,4298.6,0.46512]
[1754788057036,3.06652181,4298.9,4298.6,0.46512]
[1754788057223,1.4357,4298.8,4298.6,0.46512]
[1754788057429,1.9465,4298.7,4297.8,1.2717]
[1754788057631,3.67296,4298.3,4297.7,0.46522]
[1754788058132,3.01647966,4298.2,4297.7,0.46522]
[1754788058535,1.9465,4297.7,4297.5,0.46524]
[1754788058734,0.7347,4297.6,4297.5,0.46524]
[1754788058931,0.7347,4297.6,4297.5,1.73694]
[1754788060731,3.2078,4298.3,4298.2,0.46517]
[1754788060931,3.9425,4298.3,4298.2,1.73687]
[1754788061435,0.7347,4298.3,4298.2,1.73687]
[1754788061632,0.5108,4298.6,4298.5,0.46513]
[1754788061831,0.7347,4298.8,4298.7,1.2717]
[1754788062036,0.5108,4299.1,4298.8,0.4651]
[1754788062228,0.5108,4299.1,4299.0,0.46508]
[1754788062433,3.2078,4299.3,4299.0,0.46508]
[1754788062434,3.2078,4299.3,4299.2,1.2717]
[1754788062932,3.9425,4299.3,4299.2,1.2717]
[1754788063533,0.7347,4299.6,4299.5,1.18833]
[1754788063731,1.9465,4299.7,4299.5,1.18833]
[1754788063939,0.7347,4299.6,4299.5,0.7233]
[1754788064235,0.7347,4299.6,4299.5,1.2717]
[1754788065240,0.5108,4299.6,4298.9,0.5484]
[1754788065436,0.7347,4299.6,4299.5,1.73672]
[1754788065633,3.2078,4299.8,4299.6,0.7233]
[1754788065838,3.2078,4299.8,4299.7,1.2717]
[1754788066134,3.2078,4299.8,4299.5,0.46502]
[1754788066337,1.2455,4299.6,4298.9,1.2717]
[1754788066540,3.35688599,4299.8,4299.5,0.46502]
[1754788066738,3.2078,4299.8,4299.3,0.46504]
[1754788066938,3.2078,4299.8,4299.5,0.46502]
[1754788067135,1.9465,4299.7,4299.5,0.46502]
[1754788067335,1.9465,4299.6,4299.5,0.46502]
[1754788067536,3.2078,4299.8,4299.5,0.46502]
[1754788067839,3.6728,4299.8,4299.4,0.46503]
[1754788068040,3.2078,4299.8,4299.4,0.46503]
[1754788068237,3.2078,4299.8,4298.8,3.2078]
[1754788068238,5.1543,4299.8,4299.7,0.465]
[1754788068537,1.2455,4299.5,4298.9,0.5484]
[1754788068737,1.9465,4299.5,4298.9,0.5484]
[1754788068934,1.9465,4299.5,4299.4,0.46503]
[1754788069344,1.9465,4299.5,4299.4,1.73673]
[1754788069742,1.9465,4299.5,4299.4,0.46503]
[1754788070143,0.7347,4299.5,4299.4,1.73673]
[1754788071045,1.9465,4299.5,4299.4,0.46503]
[1754788071642,1.9465,4299.5,4299.4,1.2717]
[1754788072741,0.7347,4299.7,4299.6,1.01342]
[1754788073043,0.7347,4299.7,4299.6,1.73672]
[1754788073843,3.2078,4299.8,4299.6,1.73672]
[1754788074146,3.2078,4299.8,4299.7,1.2717]
[1754788074945,3.9425,4299.8,4299.7,1.2717]
[1754788075444,4.4533,4299.8,4299.7,1.2717]
[1754788075744,1.9465,4299.8,4299.7,1.2717]
[1754788081142,0.7347,4299.8,4299.7,1.2717]
[1754788081944,0.7347,4300.7,4300.5,0.46492]
[1754788082148,0.7347,4300.7,4300.6,1.2717]
[1754788082347,3.2078,4301.0,4300.9,1.73657]
[1754788083041,3.2078,4301.7,4301.3,0.46483]
[1754788083437,6.28458883,4301.7,4301.5,0.46481]
[1754788083636,2.0955893,4301.6,4301.5,0.46481]
[1754788083841,0.1490893,4301.6,4301.5,1.73651]
[1754788084048,3.2078,4302.2,4302.1,1.2717]
[1754788084243,3.9425,4302.2,4302.1,1.2717]
[1754788084547,1.2118,4302.1,4301.9,0.46476]
[1754788084746,0.7347,4302.0,4301.9,1.73646]
[1754788085242,0.7347,4302.0,4301.9,1.2717]
[1754788085443,1.8737,4302.1,4301.5,0.4648]
[1754788085638,0.7006,4302.0,4301.7,0.46478]
[1754788085841,1.1731,4301.9,4301.7,1.69678]
[1754788086049,0.7006,4301.8,4301.7,0.46478]
[1754788086646,0.7006,4301.8,4301.7,1.69678]
[1754788086951,0.46472,4302.4,4301.7,1.69678]
[1754788086952,3.2078,4303.0,4302.3,1.16181]
[1754788087151,3.9084,4303.0,4302.9,1.69666]
[1754788087450,5.0815,4303.0,4302.9,1.69666]
[1754788087649,5.0815,4303.0,4302.9,1.232]
[1754788088049,3.9084,4303.0,4302.9,1.232]
[1754788088644,3.2078,4303.0,4302.9,1.232]
[1754788088849,3.9084,4303.7,4303.6,0.46458]
[1754788089049,0.7006,4303.6,4303.1,0.46463]
[1754788089241,0.512,4303.5,4303.2,0.5135]
[1754788089441,1.8737,4303.6,4303.2,1.232]
[1754788089641,1.8737,4303.6,4303.3,0.46462]
[1754788089840,0.7006,4303.5,4303.4,1.232]
[1754788090141,3.2078,4303.7,4303.6,1.232]
[1754788090749,3.9084,4304.2,4303.7,0.46457]
[1754788090945,0.512,4304.1,4303.7,0.46457]
[1754788091156,1.1731,4304.1,4303.7,0.46457]
[1754788091455,0.7006,4304.0,4303.9,0.46454]
[1754788091850,3.2078,4304.2,4303.9,1.69654]
[1754788092045,3.67232,4304.2,4304.1,1.232]
[1754788092244,3.67232,4304.2,4303.3,0.46461]
[1754788092245,3.05596502,4304.1,4303.5,0.46459]
[1754788092450,3.2078,4304.2,4303.6,0.7185]
[1754788092754,0.7006,4304.1,4303.9,0.46455]
[1754788093149,1.24607076,4306.2,4303.9,0.46455]
[1754788093150,3.2078,4304.9,4303.9,0.46455]
[1754788093356,3.2078,4304.9,4304.7,1.232]
[1754788093747,1.1731,4305.3,4305.2,0.46441]
[1754788093951,0.7006,4305.3,4305.2,1.69641]
[1754788094852,0.7006,4305.3,4304.4,3.67229]
[1754788095054,0.7006,4305.0,4304.4,3.2078]
[1754788095552,1.8737,4305.2,4304.5,1.232]
[1754788095759,2.33818,4304.6,4304.1,1.232]
[1754788095950,0.46449,4304.5,4303.8,0.46455]
[1754788096152,1.6376,4304.4,4303.8,0.46456]
[1754788096460,0.4645,4304.4,4303.8,0.46456]
[1754788096651,1.8737,4304.1,4303.8,1.232]
[1754788096856,0.46458,4303.7,4303.5,3.2078]
[1754788097053,1.8737,4303.4,4303.3,0.46461]
[1754788097250,1.8737,4303.4,4302.5,1.16174]
[1754788097251,1.8737,4303.4,4302.5,0.7185]
[1754788097454,1.8737,4303.4,4302.4,3.2078]
[1754788097455,0.6611,4303.0,4302.4,3.2078]
[1754788097753,0.512,4302.8,4302.2,0.97823]
[1754788097961,0.7006,4302.7,4302.2,0.97823]
[1754788098258,0.7006,4302.5,4301.8,1.232]
[1754788098554,0.7006,4302.5,4302.2,0.46472]
[1754788098749,0.7006,4302.4,4302.3,1.232]
[1754788099153,0.7006,4302.4,4301.9,0.46476]
[1754788099154,1.8737,4302.4,4301.8,1.232]
[1754788099552,1.1731,4302.4,4302.2,0.46473]
[1754788099750,0.7006,4302.3,4302.2,0.46473]
[1754788100155,0.7006,4302.8,4302.5,0.4647]
[1754788100357,0.7006,4302.8,4301.0,0.1581996]
[1754788100358,0.7006,4302.5,4300.5,3.2078]
[1754788100658,0.46484,4301.2,4300.3,0.46494]
[1754788100851,0.46487,4301.0,4300.5,0.5135]
[1754788101050,0.7006,4300.6,4300.5,0.5135]
[1754788101257,1.3617,4300.6,4300.0,3.7213]
[1754788101661,3.2078,4301.0,4300.5,0.97842]
[1754788101962,3.9084,4301.0,4300.8,0.97838]
[1754788102157,3.2078,4301.5,4301.4,0.46482]
[1754788102352,3.2078,4301.5,4300.8,0.5135]
[1754788102353,3.9084,4301.5,4300.8,0.5135]
[1754788102558,3.9084,4301.5,4300.8,1.232]
[1754788103261,1.3617,4301.4,4300.8,1.232]
[1754788103463,3.2078,4302.0,4301.3,0.46483]
[1754788103659,0.46477,4301.9,4301.3,0.46483]
[1754788103864,0.46477,4301.9,4301.2,0.46484]
[1754788104064,1.3617,4301.7,4300.9,1.232]
[1754788104267,0.7006,4301.6,4300.9,1.232]
[1754788104467,3.08968815,4301.9,4301.3,1.232]
[1754788104665,3.2078,4302.0,4301.5,1.232]
[1754788104666,0.7006,4301.8,4301.5,1.232]
[1754788104867,0.7006,4301.8,4301.6,0.4648]
[1754788105070,0.7006,4301.8,4301.7,1.232]
[1754788105568,0.7006,4302.3,4301.8,0.46478]
[1754788105767,0.6611,4302.4,4301.8,0.46478]
[1754788105768,1.3617,4302.1,4301.8,0.97828]
[1754788106065,1.3617,4302.2,4301.6,0.4648]
[1754788106269,0.7006,4302.1,4301.6,0.4648]
[1754788106469,0.46471,4302.4,4301.8,0.46477]
[1754788106671,1.3617,4301.8,4301.7,0.46478]